Cogmind - Beta 14 @@@ ROGUE MODE // 2024.09.24 @ 22:01:20 // Winter2022/Polymind Player: AnotherZach Result: Destroyed by S-10 Pest with Light Assault Rifle Performance ------------- Evolutions (2) 1000 Regions Visited (8) 1600 Robots Destroyed (3) 15 Value Destroyed (90) 90 Prototype IDs (25) 500 Alien Tech Used (0) 0 Bonus (4233) 4233 TOTAL SCORE: 7278 Bonus ------- Polymind Skill 3876 Pacifist 564 Follower Combat Kills 140 Aligned with FarCom 300 Friendly Fire -647 Cogmind --------- Core Integrity 0/550 Matter 0/0 Energy 100/100 System Corruption 0% Temperature Cool (0) Movement Core (50) Location -8/Storage Parts ------- > --- POWER (1) -------- (None) > --- PROPULSION (2) --- (None) > --- UTILITY (22) ----- (None) > --- WEAPON (0) ------- (None) > --- INVENTORY (0) ---- (None) Peak State ------------ > --- POWER ------------ Cold Fusion Reactor > --- PROPULSION ------- Makeshift Hover Unit Makeshift Hover Unit > --- UTILITY ---------- EX Chip 1 EX Chip 1 EX Chip 1 EX Chip 1 EX Chip 1 EX Chip 1 EX Chip 1 EX Chip 1 EX Chip 1 EX Chip 1 EX Chip 2 EX Chip 2 EX Chip 2 EX Chip 2 EX Chip 2 EX Chip 2 EX Chip 2 EX Chip 2 EX Chip 2 EX Chip 2 Advanced Component Analysis Suite System Purifier > --- WEAPON ----------- (None) > --- INVENTORY -------- (None) [Rating: 73] Favorites ----------- Power Light Ion Engine Engine Light Ion Engine Reactor Cold Fusion Reactor Propulsion Wheel Leg Aluminum Leg Wheel Wheel Hover Unit Makeshift Hover Unit Utility EX Chip 2 Device Recalibrator Storage Medium Matter Pod Processor Machine Analyzer Hackware EX Chip 2 Weapon Datajack Energy Gun Small Laser Special Weapon Mining Laser Special Melee Weapon Datajack Build | -11 -10 -10 -9 -9 -9 -8 -8 -8 ------- Run | Yrd Mat Min Mat Min Exi Min Mat Sto Slots Evolved . | . . . . . . . . . Power . | . . . . . . . . . Propulsion . | . . . . . . . . . Utility . | . . . . . . . . . Weapon . | . . . . . . . . . Parts Attached . | . . . . . . . . . Power . | . . . . . . . . . Engine . | . . . . . . . . . Core . | . . . . . . . . . Reactor . | . . . . . . . . . Propulsion . | . . . . . . . . . Treads . | . . . . . . . . . Leg . | . . . . . . . . . Wheel . | . . . . . . . . . Hover . | . . . . . . . . . Flight . | . . . . . . . . . Utility . | . . . . . . . . . Device . | . . . . . . . . . Storage . | . . . . . . . . . Processor . | . . . . . . . . . Hackware . | . . . . . . . . . Protection . | . . . . . . . . . Artifact . | . . . . . . . . . Weapon . | . . . . . . . . . Energy Gun . | . . . . . . . . . Energy Cannon . | . . . . . . . . . Ballistic Gun . | . . . . . . . . . Ballistic Cannon . | . . . . . . . . . Launcher . | . . . . . . . . . Special Weapon . | . . . . . . . . . Impact Weapon . | . . . . . . . . . Slashing Weapon . | . . . . . . . . . Piercing Weapon . | . . . . . . . . . Special Melee Weapon . | . . . . . . . . . Unidentified Prototypes . | . . . . . . . . . Parts Lost 17 | . . . 1 . 5 . 11 . Power 1 | . . . . . . . 1 . Propulsion 1 | . . . . . . . 1 . Utility 14 | . . . . . 5 . 9 . Weapon 1 | . . . 1 . . . . . Highest Loss Streak 6 | . . . 1 . 5 . 6 . To Critical Strikes . | . . . . . . . . . Average Slot Usage (%) 77 | . 100 73 49 100 94 80 53 . Engine 13 | . 18 15 11 20 13 . . . Wheel 20 | . 9 11 18 40 27 . . . Hover 7 | . 28 19 1 . 2 8 5 . Device 9 | . 9 1 3 20 16 8 3 . Storage 2 | . . 5 7 . . . . . Processor 7 | . . . 1 20 13 . . . Hackware 12 | . 14 9 . . 18 60 40 . Special Melee Weapon 2 | . 14 9 . . . . . . Peak Build Rating 73 | 8 8 7 11 11 73 63 63 . Average Rating 14 | 3 7 4 2 10 27 63 39 . On Entrance 18 | . 8 7 . 11 10 63 63 . Naked Turns 256 | . . 65 105 . 5 . 37 44 Heaviest Build 17 | 6 6 9 7 4 17 17 17 . Greatest Support 32 | 20 20 32 20 20 24 24 24 3 Greatest Overweight (x) 1 | . . . . . . . 1 . Average Overweight (x) . | . . . . . . . . . Largest Inventory Capacity 12 | . 1 4 12 12 12 1 1 . Average Capacity 4 | . . . . 12 8 1 . . Most Carried 12 | . 1 1 12 12 12 . . . Average Carried 3 | . . . . 8 6 . . . Final Capacity 12 | . 1 . 12 12 1 1 . . Final Carried 12 | . 1 . 12 7 . . . . Class Distribution -------------------- 37% | Mechanic 17% | Cogmind 16% | Thief 14% | Operator 9% | Worker Dominant Class ---------------- Operator | -10/Materials Operator | -10/Mines Cogmind | -9/Materials Mechanic | -9/Mines Mechanic | -9/Exiles Thief | -8/Mines Thief | -8/Materials Cogmind | -8/Storage Resources | -11 -10 -10 -9 -9 -9 -8 -8 -8 ----------- Run | Yrd Mat Min Mat Min Exi Min Mat Sto Matter Collected 84 | . . . 84 . . . . . Remotely . | . . . . . . . . . Salvage Created 13 | . . . . . . . 13 . Parts 2 | . . . . . . . 2 . Haulers Intercepted . | . . . . . . . . . Recyclers Shooed . | . . . . . . . . . Parts Field Recycled . | . . . . . . . . . Retrieved Matter . | . . . . . . . . . Parts Self-Destructed . | . . . . . . . . . Prevented . | . . . . . . . . . Kills | -11 -10 -10 -9 -9 -9 -8 -8 -8 ------- Run | Yrd Mat Min Mat Min Exi Min Mat Sto Combat Hostiles Destroyed 2 | . . . . . . . 2 . AOE 2 | . . . . . . . 2 . Classes Destroyed 1 | . . . . . . . 1 . Swarmer 2 | . . . . . . . 2 . Best Kill Streak 2 | . . . . . . . 2 . Combat Bots Only 2 | . . . . . . . 2 . Max Kills in Single Turn 3 | . . . . . . . 3 . Gunslinging . | . . . . . . . . . Exploded 2 | . . . . . . . 2 . Melee . | . . . . . . . . . Uniques/NPCs Destroyed 1 | . . . . . . . 1 . EX-BIN (-8/Materials) Combat | -11 -10 -10 -9 -9 -9 -8 -8 -8 -------- Run | Yrd Mat Min Mat Min Exi Min Mat Sto Hostile Shots Fired 160 | . 2 . 55 . . 3 97 3 Missed 57 | . 1 . 19 . . 1 36 . Damage Taken 1281 | . 12 . 374 1 11 31 825 27 Core 781 | . . . 228 . . . 526 27 Absorbed by Shields . | . . . . . . . . . Core Remaining (%) 81 | 100 . 100 . . . 43 . . Volleys Fired . | . . . . . . . . . Largest . | . . . . . . . . . Hottest . | . . . . . . . . . Shots Fired . | . . . . . . . . . Gun . | . . . . . . . . . Cannon . | . . . . . . . . . Launcher . | . . . . . . . . . Special . | . . . . . . . . . Kinetic . | . . . . . . . . . Thermal . | . . . . . . . . . Explosive . | . . . . . . . . . Electromagnetic . | . . . . . . . . . Robot Hit Streak . | . . . . . . . . . Robot Miss Streak . | . . . . . . . . . Penetration Max . | . . . . . . . . . Secondary Targets . | . . . . . . . . . Shots Hit Robots 1 | . . 1 . . . . . . Core Hits 5 | . . . 1 1 . . 3 . Critical Kills . | . . . . . . . . . Critical Parts Destroyed . | . . . . . . . . . Critical Strikes . | . . . . . . . . . Melee Attacks 1 | . . 1 . . . . . . Impact . | . . . . . . . . . Slashing . | . . . . . . . . . Piercing . | . . . . . . . . . Sneak Attacks 1 | . . 1 . . . . . . Combat Hostiles . | . . . . . . . . . Follow-up Attacks . | . . . . . . . . . Damage Inflicted 479 | . . . 19 3 25 . 428 4 Guns . | . . . . . . . . . Cannons . | . . . . . . . . . Explosions 382 | . . . . . . . 382 . Melee . | . . . . . . . . . Ramming 97 | . . . 19 3 25 . 46 4 Kinetic . | . . . . . . . . . Thermal . | . . . . . . . . . Explosive 382 | . . . . . . . 382 . Electromagnetic . | . . . . . . . . . Impact . | . . . . . . . . . Slashing . | . . . . . . . . . Piercing . | . . . . . . . . . Highest Corruption . | . . . . . . . . . Average Corruption . | . . . . . . . . . Corruption Purged . | . . . . . . . . . Corruption Blocked . | . . . . . . . . . Overload Shots . | . . . . . . . . . Overflow Damage 62 | . . . . . . . 62 . Projectiles . | . . . . . . . . . Explosions 62 | . . . . . . . 62 . Melee . | . . . . . . . . . Knockbacks . | . . . . . . . . . Impact . | . . . . . . . . . Kinetic . | . . . . . . . . . Secondary . | . . . . . . . . . Self-Inflicted Damage 42 | . . . 7 1 11 . 21 2 Shots . | . . . . . . . . . Rammed 20 | . . . 8 2 3 . 5 2 Targets Rammed 20 | . . . 8 2 3 . 5 2 Kicked . | . . . . . . . . . Crushed . | . . . . . . . . . Highest Temperature 38 | . 2 . 4 . . 2 38 . Average Temperature 12 | . 2 . 2 . . 2 18 . Received Heat Transfer 462 | . 6 . 105 . . 18 333 . Siege Activations . | . . . . . . . . . Robots Corrupted . | . . . . . . . . . Combat Hostiles . | . . . . . . . . . Parts Fried . | . . . . . . . . . Impact Corruptions . | . . . . . . . . . Robots Melted . | . . . . . . . . . Combat Hostiles . | . . . . . . . . . Parts Melted . | . . . . . . . . . Heat Transferred . | . . . . . . . . . Parts Sabotaged . | . . . . . . . . . Parts Stolen . | . . . . . . . . . Parts Stripped . | . . . . . . . . . Power Chain Reactions . | . . . . . . . . . Alert | -11 -10 -10 -9 -9 -9 -8 -8 -8 ------- Run | Yrd Mat Min Mat Min Exi Min Mat Sto Peak Influence 263 | . 12 60 175 263 . . 258 180 Initial 121 | . . . 23 64 . . . 121 Average 77 | . 2 8 60 179 . . 47 131 Maximum Alert Level 1 | . . . . 1 . . 1 . Low Security (%) 91 | 100 100 100 100 75 . 100 94 100 Level 1 8 | . . . . 24 . . 5 . Level 2 . | . . . . . . . . . Level 3 . | . . . . . . . . . Level 4 . | . . . . . . . . . Level 5 . | . . . . . . . . . High Security . | . . . . . . . . . Max Security . | . . . . . . . . . Squads Dispatched 6 | . . 1 2 . . . 2 1 Investigation 5 | . . 1 2 . . . 2 . Extermination . | . . . . . . . . . Reinforcement 1 | . . . . . . . . 1 Assault . | . . . . . . . . . Garrison . | . . . . . . . . . Intercept . | . . . . . . . . . Searches Triggered . | . . . . . . . . . Construction Impeded . | . . . . . . . . . Haulers Reinforced . | . . . . . . . . . Active Scanning Responses . | . . . . . . . . . Cargo Convoy Interrupts . | . . . . . . . . . Stealth | -11 -10 -10 -9 -9 -9 -8 -8 -8 --------- Run | Yrd Mat Min Mat Min Exi Min Mat Sto Distress Signals 3 | . . . 2 . . . 1 . Communications Jammed . | . . . . . . . . . Distress Signals . | . . . . . . . . . Times Spotted 75 | . 2 3 29 4 1 3 28 5 Peak Tracking Total 17 | . 3 2 8 3 . 3 17 5 Tactical Retreats 6 | . . 1 . . . . 4 1 Traps | -11 -10 -10 -9 -9 -9 -8 -8 -8 ------- Run | Yrd Mat Min Mat Min Exi Min Mat Sto Traps Triggered 1 | . . . . . . . . 1 Indirectly . | . . . . . . . . . Trap Hack Attempts . | . . . . . . . . . Triggered . | . . . . . . . . . Disarmed . | . . . . . . . . . Reprogrammed . | . . . . . . . . . Reused . | . . . . . . . . . Traps Extracted . | . . . . . . . . . Installed . | . . . . . . . . . Triggered . | . . . . . . . . . Objects Rigged 5 | . . . . . . . 5 . Exploded 1 | . . . . . . . 1 . Machines | -11 -10 -10 -9 -9 -9 -8 -8 -8 ---------- Run | Yrd Mat Min Mat Min Exi Min Mat Sto Machines Disabled 1 | . . . . . . . 1 . Max in Single Turn 1 | . . . . . . . 1 . Machines Repaired . | . . . . . . . . . Machines Dismantled . | . . . . . . . . . Machines Sabotaged 1 | . . . . . . . 1 . Overloaded Fab Kills . | . . . . . . . . . Hacking | -11 -10 -10 -9 -9 -9 -8 -8 -8 --------- Run | Yrd Mat Min Mat Min Exi Min Mat Sto Machines Accessed 15 | . 2 1 3 . 1 . 5 3 Terminals 10 | . 2 . 2 . . . 3 3 Fabricators . | . . . . . . . . . Repair Stations . | . . . . . . . . . Recycling Units 3 | . . . 1 . . . 2 . Scanalyzers . | . . . . . . . . . Garrison Access . | . . . . . . . . . Total Hacks 44 | . 7 1 6 . 1 . 22 7 Successful 27 | . 3 1 1 . 1 . 18 3 Failed 16 | . 3 . 5 . . . 4 4 Catastrophic 2 | . . . 2 . . . . . Database Lockouts 1 | . 1 . . . . . . . Manual 30 | . 7 . 4 . 1 . 18 . Terminals 34 | . 7 . 5 . . . 15 7 Fabricators . | . . . . . . . . . Repair Stations . | . . . . . . . . . Recycling Units 8 | . . . 1 . . . 7 . Scanalyzers . | . . . . . . . . . Garrison Access . | . . . . . . . . . Terminal Hacks 14 | . 2 1 . . 1 . 7 3 Robot Schematic 4 | . 1 . . . . . 3 . Open Door 3 | . . 1 . . . . . 2 Level Access Points 1 | . . . . . . . 1 . Branch Access Points 2 | . . . . . . . 1 1 Terminal Index 2 | . . . . . . . 2 . Unreport Threat 1 | . 1 . . . . . . . Derelict Proto ID Bank 1 | . . . . . 1 . . . Fabricator Hacks . | . . . . . . . . . Repair Station Hacks . | . . . . . . . . . Recycling Unit Hacks 4 | . . . . . . . 4 . Report Inventory 1 | . . . . . . . 1 . Retrieve Matter 1 | . . . . . . . 1 . Retrieve Components 2 | . . . . . . . 2 . Scanalyzer . | . . . . . . . . . Garrison Access Hacks . | . . . . . . . . . Unauthorized Hacks 8 | . 1 . 1 . . . 6 . Terminals 5 | . 1 . . . . . 4 . Botnet 1 | . 1 . . . . . . . Detonate 2 | . . . . . . . 2 . Sabotage 2 | . . . . . . . 2 . Fabricators . | . . . . . . . . . Repair Stations . | . . . . . . . . . Recycling Units 3 | . . . 1 . . . 2 . Reject 1 | . . . . . . . 1 . Recyclers 2 | . . . 1 . . . 1 . Scanalyzers . | . . . . . . . . . Garrison Access . | . . . . . . . . . Data Cores Recovered . | . . . . . . . . . Used . | . . . . . . . . . Hacking Detections 8 | . 1 . 2 . . . 3 2 Full Trace Events 2 | . . . 2 . . . . . Feedback Events . | . . . . . . . . . Feedback Blocked . | . . . . . . . . . Robot Schematics Acquired 4 | . 1 . . . . . 3 . Robots Built . | . . . . . . . . . Authchips . | . . . . . . . . . Time . | . . . . . . . . . Total Robot Build Rating . | . . . . . . . . . Part Schematics Acquired . | . . . . . . . . . Parts Built . | . . . . . . . . . Authchips . | . . . . . . . . . Time . | . . . . . . . . . Total Part Build Rating . | . . . . . . . . . Parts Repaired . | . . . . . . . . . Time . | . . . . . . . . . Parts Recycled . | . . . . . . . . . Recycled Matter . | . . . . . . . . . Retrieved Matter . | . . . . . . . . . Retrieved Components 6 | . . . . . . . 6 . Parts Scanalyzed . | . . . . . . . . . Part Schematics Acquired . | . . . . . . . . . Parts Damaged . | . . . . . . . . . Bothacking | -11 -10 -10 -9 -9 -9 -8 -8 -8 ------------ Run | Yrd Mat Min Mat Min Exi Min Mat Sto Used RIF Installer . | . . . . . . . . . Robots Hacked 6 | . 1 1 4 . . . . . Non-combat 5 | . 1 1 3 . . . . . Combat 1 | . . . 1 . . . . . Robot Hacks Applied 6 | . 1 1 4 . . . . . parse_system 1 | . . 1 . . . . . . map_walls 1 | . . . 1 . . . . . find_station 1 | . . . 1 . . . . . find_terminals 2 | . 1 . 1 . . . . . find_shortcuts 1 | . . . 1 . . . . . Relay Couplers Released . | . . . . . . . . . Fabnet Peak Effective % . | . . . . . . . . . Robots Rewired . | . . . . . . . . . Allies Hacked . | . . . . . . . . . Hacks Repelled . | . . . . . . . . . Allies | -11 -10 -10 -9 -9 -9 -8 -8 -8 -------- Run | Yrd Mat Min Mat Min Exi Min Mat Sto Total Allies 3 | . . . . 3 . . . . Largest Group 3 | . . . . 3 2 . . . Highest-Rated Group 78 | . . . . 78 62 . . . Highest-Rated Ally 31 | . . . . 31 31 . . . Total Orders . | . . . . . . . . . Ally Attacks 32 | . . . . 32 . . . . Total Damage 479 | . . . . 479 . . . . Kills 8 | . . . . 8 . . . . Allies Corrupted 1 | . . . . 1 . . . . Allies Melted . | . . . . . . . . . Intel | -11 -10 -10 -9 -9 -9 -8 -8 -8 ------- Run | Yrd Mat Min Mat Min Exi Min Mat Sto Robot Analysis Total 7 | 1 1 2 3 . . . . . Derelict Logs Recovered 3 | . . 2 . 1 . . . . Drone Launches . | . . . . . . . . . Drone Recoveries . | . . . . . . . . . Exploration | -11 -10 -10 -9 -9 -9 -8 -8 -8 ------------- Run | Yrd Mat Min Mat Min Exi Min Mat Sto Turns Passed 1481 | 54 104 262 214 374 227 24 178 44 Spaces Moved 1988 | 90 135 435 275 382 292 36 264 79 Core 492 | 59 . 133 140 . 10 . 71 79 Treads . | . . . . . . . . . Legs 2 | . . . 2 . . . . . Wheels 835 | 31 36 90 118 382 178 . . . Hover 659 | . 99 212 15 . 104 36 193 . Flight . | . . . . . . . . . Fastest Speed 50 | 50 56 50 50 80 50 66 50 50 Average Speed 67 | 60 62 59 63 80 73 66 65 50 Slowest Speed 140 | 80 80 100 120 80 80 66 140 50 Overloaded Moves . | . . . . . . . . . Propulsion Burnouts . | . . . . . . . . . Robots Hopped . | . . . . . . . . . Cave-ins Triggered . | . . . . . . . . . Exploration Rate (%) 38 | 4 28 70 29 82 60 13 41 16 Regions Visited 8 Branch Regions 5 Pre-discovered Areas . | . . . . . . . . . Known Exits Taken 2 | . . . 1 . . . 1 . Unknown Exits Taken 6 | 1 1 1 . 1 1 1 . . Scrap Searched . | . . . . . . . . . Spaces Dug . | . . . . . . . . . Terrain Destroyed 20 | . . . . . . . 20 . Melee . | . . . . . . . . . Projectile . | . . . . . . . . . AOE 20 | . . . . . . . 20 . Terrain Rammed . | . . . . . . . . . Walls Destroyed . | . . . . . . . . . Machines Disabled . | . . . . . . . . . Actions | -11 -10 -10 -9 -9 -9 -8 -8 -8 --------- Run | Yrd Mat Min Mat Min Exi Min Mat Sto Total 2131 | 89 154 435 313 450 304 35 268 83 Wait 108 | . 19 . 31 56 . . . 2 Move 1980 | 89 134 434 274 381 291 35 263 79 Hop . | . . . . . . . . . Pick Up 8 | . 1 . . 1 6 . . . Fast Attach . | . . . . . . . . . Attach . | . . . . . . . . . Detach . | . . . . . . . . . Swap . | . . . . . . . . . Drop 4 | . . . . . 4 . . . Fire . | . . . . . . . . . Melee 1 | . . 1 . . . . . . Ram 20 | . . . 8 2 3 . 5 2 Kick . | . . . . . . . . . Crush . | . . . . . . . . . Escape Stasis . | . . . . . . . . . Rewire . | . . . . . . . . . Trap . | . . . . . . . . . Miscellaneous 10 | . . . . 10 . . . . Route ------- -11/Scrapyard -10/Materials (discovered 2 exits: *Mat / *Min) -10/Mines -9/Materials -9/Mines (discovered 2 exits: *Mat / *Exi) -9/Exiles -8/Mines -8/Materials (discovered 5 exits: Fac x3 / *Sto x2) -8/Storage (discovered 1 exit: Rec) History --------- Turn | Location | Event 5 | -11/Scrapyard | Discovered new exit (range 15) 55 | -11/Scrapyard | Entered Materials 66 | -10/Materials | Discovered new exit (range 13) 96 | -10/Materials | Central database locked down 98 | -10/Materials | Discovered new exit (range 5) 159 | -10/Materials | Entered Mines 175 | -10/Mines | Received a Rocket Launcher from a helpful Derelict 182 | -10/Mines | Discovered new exit (range 8) 206 | -10/Mines | Learned 4 Materials zone layouts 340 | -10/Mines | Met a Derelict shopkeep closing up shop 421 | -10/Mines | Entered Materials 422 | -9/Materials | Identified exit to Mines 632 | -9/Materials | Core integrity fell below 50% 635 | -9/Materials | Entered Mines 867 | -9/Mines | Received a Mining Laser from a helpful Derelict 936 | -9/Mines | Discovered new exit (range 5) 949 | -9/Mines | Learned Materials non-interactive machine intel 989 | -9/Mines | Deemed a non-threat by the Exiles lab entrance 989 | -9/Mines | Discovered new exit (range 5) 1009 | -9/Mines | Entered Exiles 1009 | -9/Exiles | Accompanied by 2 allies 1039 | -9/Exiles | Led the pair of lost Derelicts to a safe place 1039 | -9/Exiles | Met 8R-AWN 1062 | -9/Exiles | Met EX-HEX 1084 | -9/Exiles | Met EX-BIN 1095 | -9/Exiles | Aligned with FarCom system 1096 | -9/Exiles | Given EX-Vault access code 1114 | -9/Exiles | Opened EX-Vault 1120 | -9/Exiles | Found Potential Leg 1123 | -9/Exiles | Found Potential Leg 1126 | -9/Exiles | Found Cloak of Protection 1135 | -9/Exiles | Found Flying Fortress v7 1153 | -9/Exiles | Exiles lab attacked by MAIN.C 1165 | -9/Exiles | Took control of EX-BIN (ally) 1205 | -9/Exiles | Lost 5 parts (5u) 1228 | -9/Exiles | Discovered new exit (range 14) 1236 | -9/Exiles | Entered Mines 1248 | -8/Mines | Discovered new exit (range 9) 1260 | -8/Mines | Entered Materials 1261 | -8/Materials | Identified exit to Storage 1262 | -8/Materials | Loaded intel: 42 non-interactive machine locations 1348 | -8/Materials | Identified exit to Factory 1367 | -8/Materials | Lost 6 parts (6u) 1403 | -8/Materials | Destroyed EX-BIN 1407 | -8/Materials | Core integrity fell below 50% 1428 | -8/Materials | Lost 5 parts (1p1n3u) 1428 | -8/Materials | Core integrity fell below 20% 1438 | -8/Materials | Entered Storage 1463 | -8/Storage | Identified exit to Recycling 1482 | -8/Storage | Destroyed by S-10 Pest with Light Assault Rifle Last Messages --------------- 01438_ Massive razor-sharp blades shoot up from within the floor. 01443_ Connecting with Door Terminal... >>Open(Door) Sealed Heavy Doors opened. 01449_ Connecting with Door Terminal... >>Open(Door) Sealed Heavy Doors opened. 01454_ K-01 Serf collects debris. 01463_ Connecting with Terminal... >>Access(Branch) Found 1 branch access point: (70,60) Recycling Map updated. 01469_ O-16 Technician: "IFF HANDSHAKE FAILED. SECURING TERMINAL." 01470_ K-01 Serf collects debris. 01471_ ALERT: Hostiles spotted, dispatching reinforcements to Terminal S015. 01480_ Slammed into S-10 Pest. Map ----- +----------------------------------------------------+ | ????????????# #????????????????????????????????? | | ????????????# #????????????????????????????????? | | ????????????# #????????????????????????????????? | | ????????????# #????????????????????????????????? | | ????????????+ +????????????????????????????????? | | ????????????# #????????????????????????????????? | | ????????????# #????????????????????????????????? | | ????????????# #????????????????????????????????? | | ????????????# #????????????????????????????????? | | ????????????# #????????????????????????????????? | | ????????????# #????????????????????????????????? | | #######?????# #????????????????????????????????? | | # ####### #####+#########+#+#??????????????? | | # ?????????????? | | # T w ?????????????? | | # ?????????????? | | # ###############+##+#####???????????????????? | | ## ##??????????# #??????????????????????? | | ?# #???????????# #??????????????Y???????? | | ?# #???????????# """" #??????????????????????? | | ?# #???????????# ???"" #??????????????????????? | | ?# + """ ??????#?????"" #??????????????????????? | | ?# # """ ?????????????"s#??????????????????????? | | ?# # """ ??????# ?????"s#??????????????????????? | | ?# #?""" ??????# """"s#??????????????????????? | | ?# #?? ??????# %@#??????????????????????? | | ?# #??##???????##########??????????????????????? | | ?# #???????????????????????????????????????????? | | ?# #???????????????????????????????????????????? | | ## ####?????????????????????Y??????????????????? | | # ##T######???????????????????????????????????? | | + + ]]]]#???????????????????????????????????? | | ## # #???????????????????Y???????????????? | | ## # ]]]]#???????????????????????????????????? | | ## #########????????????????????????w??????????? | | ## #???????????????????????????????????????????? | | ## #???????????????????????????????????????????? | | ######???????????????????????????????????????????? | | ?????????????????????????????????????????????????? | | ?????????????????????????????????????????????????? | | ?????????????????????????????????????????????????? | | ?????????????????????????????????????????????????? | | ?????????????????????????????????????????????????? | | ?????????????????????????????????????????????????? | | ?????????????????????????????????????????????????? | | ?????????????????????????????????????????????????? | | | | | | | | | +----------------------------------------------------+ Best States ------------- Heat Dissipation 28 Energy Generation 22 Energy Capacity 200 Matter Stores 109 Matter Capacity 125 Sight Range 16 Terrain Scan Range 16 Terrain Scan Density 85 Resistance: EM 90 Evasion (%) 53 Offensive Hacking 56 Defensive Hacking 63 Item Schematics ----------------- None Robot Schematics ------------------ M-13 Machinist | -10/Materials | Hacked O-24 Administrator | -8/Materials | Hacked G-47 Trooper | -8/Materials | Hacked M-14 Sweeper | -8/Materials | Hacked Fabricated ------------ Nothing Alien Tech Used ----------------- None Achievements -------------- None Challenges ------------ None Polymind | -11 -10 -10 -9 -9 -9 -8 -8 -8 ---------- Run | Yrd Mat Min Mat Min Exi Min Mat Sto Hosts 11 | 1 1 3 5 . 1 . . . Combat Hostiles 1 | . . . 1 . . . . . Allies 1 | . . . . . 1 . . . Unique Host Classes 8 | 1 1 2 3 . 1 . . . Average Host Suspicion 66 | 5 67 80 37 87 30 43 84 . Unsuspicious Activity 82 | 2 7 24 35 10 4 . . . Returns to Shadow . | . . . . . . . . . Fuzzy Dispatches . | . . . . . . . . . Protomatter Created 42 | . . . 26 8 8 . . . Used 69 | 5 5 15 35 . 9 . . . Decayed . | . . . . . . . . . Highest Spend 15 | 5 5 5 15 . 9 . . . Game ------ Seed ParticleAssembledFocus Manual? 0 Play Time 00:28:19 Cumulative 743.0 hours Start 2024.09.24 @ 21:33:15 End 2024.09.24 @ 22:01:20 Sessions 1 Manual Loads 0 Difficulty Rogue Special Mode Winter2022/Polymind Game No. 162 Rogue 24 Adventurer 138 Explorer 0 Win Type - Total 13 Types 8/0/1/2/1/0/0/0/1 Lore% 78 Gallery% 84 Achievement% 75 Wizard Run 0 Options --------- Layout 2 ASCII 0 Keyboard 0 Movement Mouse Keybinds 0 Fullscreen 1 Font 24/Smallcaps Map View 50x49 Zoom Use 14% Tactical HUD 1 Map Filters NONE Filters NONE Steam 1 RUN: 22fc7ab4-661c-4899-86d4-7efe01ee12f4